fUSD/lending_fUSD_20240129
["ID","MTS","AMOUNT","RATE_DAILY","PERIOD"]
[312987150,1706566252087,-500.0,0.00052054,31]
[312987151,1706566252096,-500.0,0.00052054,31]
[312987152,1706566252105,-500.0,0.00052054,31]
[312987153,1706566252114,-1147.31,0.00052054,31]
[312987154,1706566252123,-500.0,0.00052054,31]
[312987155,1706566252134,-755.21,0.00052054,31]
[312987156,1706566252143,-500.0,0.00052054,31]
[312987157,1706566252153,-500.0,0.00052054,31]
[312987158,1706566252163,-500.0,0.00052054,31]
[312987159,1706566252172,-5474.33,0.00052054,31]
[312987160,1706566252181,-500.0,0.00052054,31]
[312987161,1706566252234,-1002.0,0.00052054,31]
[312987162,1706566252243,-792.91,0.00052054,31]
[312987163,1706566252252,-779.61,0.00052054,31]
[312987164,1706566252261,-500.0,0.00052054,31]
[312987165,1706566252271,-987.88,0.00052054,31]
[312987166,1706566252280,-500.0,0.00052054,31]
[312987167,1706566252289,-1538.29,0.00052054,31]
[312987168,1706566252298,-500.0,0.00052054,31]
[312987169,1706566252308,-2197.03,0.00052054,5]
[312987170,1706566252317,-500.0,0.00052054,31]
[312987171,1706566252327,-500.0,0.00052054,31]
[312987172,1706566252336,-622.48,0.00052054,31]
[312987173,1706566252346,-1571.68,0.00052054,7]
[312987174,1706566252355,-500.0,0.00052054,31]
[312987175,1706566252364,-500.0,0.00052054,31]
[312987176,1706566252374,-500.0,0.00052054,31]
[312987177,1706566252383,-500.0,0.00052054,31]
[312987178,1706566252392,-717.47,0.00052054,31]
[312987179,1706566252401,-562.5,0.00052054,120]
[312987180,1706566252411,-948.48,0.00052054,31]
[312987181,1706566252420,-500.0,0.00052054,31]
[312987182,1706566252430,-711.62,0.00052054,31]
[312987183,1706566252439,-1276.53,0.00052054,31]
[312987184,1706566252448,-994.95,0.00052054,31]
[312987185,1706566252458,-500.0,0.00052054,31]
[312987186,1706566252467,-840.96,0.00052054,31]
[312987187,1706566252477,-1923.69,0.00052054,31]
[312987188,1706566252487,-500.0,0.00052054,31]
[312987189,1706566252497,-219.08636579,0.00052054,31]
[312987190,1706566252506,-725.91,0.00052054,31]
[312987191,1706566252515,-500.0,0.00052054,31]
[312987192,1706566252524,-500.0,0.00052054,31]
[312987193,1706566252534,-500.0,0.00052054,31]
[312987194,1706566252543,-500.0,0.00052054,31]
[312987195,1706566252553,-500.0,0.00052054,31]
[312987196,1706566252562,-500.0,0.00052054,31]
[312987197,1706566252571,-500.0,0.00052054,31]
[312987198,1706566252581,-500.0,0.00052054,31]
[312987199,1706566252590,-500.0,0.00052054,31]
[312987200,1706566252599,-934.51,0.00052054,31]
[312987201,1706566252608,-500.0,0.00052054,31]
[312987202,1706566252616,-500.0,0.00052054,31]
[312987203,1706566252625,-500.0,0.00052054,31]
[312987204,1706566252635,-2924.81,0.00052054,31]
[312987205,1706566252644,-222.33176668,0.00052054,31]
[312987206,1706566252653,-1427.03,0.00052054,31]
[312987207,1706566252666,-506.82,0.00052054,31]
[312987208,1706566252674,-500.0,0.00052054,31]
[312987209,1706566252683,-500.0,0.00052054,31]
[312987210,1706566252692,-1665.12,0.00052054,31]
[312987211,1706566252703,-781.84,0.00052054,31]
[312987212,1706566252713,-500.0,0.00052054,31]
[312987213,1706566252722,-500.0,0.00052054,31]
[312987214,1706566252732,-404.81307189,0.00052054,31]
[312987215,1706566252743,-500.0,0.00052054,31]
[312987216,1706566252754,-500.0,0.00052054,31]
[312987217,1706566252763,-500.0,0.00052054,31]
[312987218,1706566252773,-1231.49,0.00052054,31]
[312987219,1706566252784,-500.0,0.00052054,31]
[312987220,1706566252794,-752.99,0.00052054,31]
[312987221,1706566252805,-500.0,0.00052054,31]
[312987222,1706566252816,-3074.81,0.00052054,31]
[312987223,1706566252824,-500.0,0.00052054,31]
[312987224,1706566252833,-800.03,0.00052054,31]
[312987225,1706566252843,-500.0,0.00052054,31]
[312987226,1706566252852,-500.0,0.00052054,31]
[312987227,1706566252860,-500.0,0.00052054,31]
[312987228,1706566252869,-1773.63,0.00052054,31]
[312987229,1706566252879,-500.0,0.00052054,31]
[312987230,1706566252888,-500.0,0.00052054,31]
[312987231,1706566252897,-500.0,0.00052054,31]
[312987232,1706566252907,-738.27,0.00052054,31]
[312987233,1706566252916,-961.37,0.00052054,31]
[312987234,1706566252924,-500.0,0.00052054,31]
[312987235,1706566252933,-500.0,0.00052054,31]
[312987236,1706566252942,-500.0,0.00052054,31]
[312987237,1706566252951,-500.0,0.00052054,31]
[312987238,1706566252960,-1355.14,0.00052054,31]
[312987239,1706566252970,-1812.5,0.00052054,31]
[312987240,1706566252979,-707.97,0.00052054,31]
[312987241,1706566252988,-549.58,0.00052054,31]
[312987242,1706566252997,-326.54575701,0.00052054,31]
[312987243,1706566253005,-801.96,0.00052054,31]
[312987244,1706566253014,-837.8,0.00052054,31]
[312987245,1706566253023,-500.0,0.00052054,31]
[312987246,1706566253032,-311.29383316,0.00052054,31]
[312987247,1706566253041,-169.06905874,0.00052054,31]
[312987248,1706566253050,-500.0,0.00052054,31]
[312987249,1706566253059,-500.0,0.00052054,31]
[312987250,1706566253068,-500.0,0.00052054,31]
[312987251,1706566253077,-500.0,0.00052054,31]
[312987252,1706566253086,-500.0,0.00052054,14]
[312987253,1706566253095,-500.0,0.00052054,31]
[312987254,1706566253104,-500.0,0.00052054,31]
[312987255,1706566253114,-6948.43,0.00052054,31]
[312987256,1706566253123,-500.0,0.00052054,31]
[312987257,1706566253132,-1186.72,0.00052054,31]
[312987258,1706566253141,-500.0,0.00052054,31]
[312987259,1706566253150,-1002.51,0.00052054,31]
[312987260,1706566253158,-500.0,0.00052054,31]
[312987261,1706566253167,-500.0,0.00052054,31]
[312987262,1706566253176,-500.0,0.00052054,31]
[312987263,1706566253185,-500.0,0.00052054,31]
[312987264,1706566253194,-500.0,0.00052054,31]
[312987265,1706566253203,-1824.37,0.00052054,31]
[312987266,1706566253213,-500.0,0.00052054,31]
[312987267,1706566253223,-500.0,0.00052054,31]
[312987268,1706566253232,-500.0,0.00052054,31]
[312987269,1706566253241,-1469.51,0.00052054,31]
[312987270,1706566253251,-500.0,0.00052054,31]
[312987271,1706566253260,-3151.54,0.00052054,31]
[312987272,1706566253270,-500.0,0.00052054,31]
[312987273,1706566253279,-5100.81,0.00052054,31]
[312987274,1706566253288,-533.91144612,0.00052054,31]
[312987275,1706566253297,-500.0,0.00052054,31]
[312987276,1706566253307,-368.28446063,0.00052054,31]
[312987277,1706566253316,-500.0,0.00052054,31]
[312987278,1706566253325,-500.0,0.00052054,31]
[312987279,1706566253334,-500.0,0.00052054,31]
[312987280,1706566253344,-7001.08,0.00052054,31]
[312987281,1706566253353,-500.0,0.00052054,31]
[312987282,1706566253361,-517.88,0.00052054,31]
[312987283,1706566253370,-500.0,0.00052054,31]
[312987284,1706566253379,-1001.79,0.00052054,31]
[312987285,1706566253388,-701.98,0.00052054,31]
[312987286,1706566253397,-500.0,0.00052054,31]
[312987287,1706566253406,-1029.04,0.00052054,31]
[312987288,1706566253415,-783.04,0.00052054,31]
[312987289,1706566253425,-500.0,0.00052054,31]
[312987290,1706566253435,-500.0,0.00052054,31]
[312987291,1706566253445,-949.9,0.00052054,31]
[312987292,1706566253454,-922.47,0.00052054,31]
[312987293,1706566253464,-2604.44,0.00052054,31]
[312987294,1706566253473,-500.0,0.00052054,31]
[312987295,1706566253482,-636.94,0.00052054,31]
[312987296,1706566253491,-500.0,0.00052054,31]
[312987297,1706566253502,-500.0,0.00052054,31]
[312987298,1706566253511,-194.72142006,0.00052054,120]
[312987299,1706566253521,-701.06,0.00052054,31]
[312987300,1706566253530,-696.5,0.00052054,31]
[312987301,1706566253539,-1062.13,0.00052054,31]
[312987302,1706566253548,-551.27,0.00052054,31]
[312987303,1706566253559,-1200.06,0.00052054,31]
[312987304,1706566253568,-500.0,0.00052054,31]
[312987305,1706566253577,-500.0,0.00052054,31]
[312987306,1706566253586,-689.1,0.00052054,31]
[312987307,1706566253595,-617.02628966,0.00052054,31]
[312987308,1706566253603,-500.0,0.00052054,31]
[312987309,1706566253613,-786.75,0.00052054,31]
[312987310,1706566253622,-1410.97,0.00052054,31]
[312987311,1706566253630,-2921.7,0.00052054,31]
[312987312,1706566253639,-500.0,0.00052054,31]
[312987313,1706566253649,-500.0,0.00052054,31]
[312987314,1706566253659,-500.0,0.00052054,31]
[312987315,1706566253670,-519.46101916,0.00052054,31]
[312987316,1706566253679,-500.0,0.00052054,31]
[312987317,1706566253689,-293.88110604,0.00052054,21]
[312987318,1706566253698,-500.0,0.00052054,31]
[312987319,1706566253708,-500.0,0.00052054,31]
[312987320,1706566253718,-705.84,0.00052054,31]
[312987321,1706566253728,-500.0,0.00052054,31]
[312987322,1706566253738,-659.27,0.00052054,31]
[312987323,1706566253750,-500.0,0.00052054,31]
[312987324,1706566253761,-1123.77,0.00052054,31]
[312987325,1706566253772,-1000.0,0.00052054,7]
[312987326,1706566253782,-500.0,0.00052054,31]
[312987327,1706566253791,-500.0,0.00052054,31]
[312987328,1706566253800,-3374.1,0.00052054,5]
[312987329,1706566253810,-499.50199242,0.00052054,31]
[312987330,1706566253819,-500.0,0.00052054,31]
[312987331,1706566253829,-500.0,0.00052054,31]
[312987332,1706566253839,-2757.24,0.00052054,31]
[312987333,1706566253849,-595.99,0.00052054,31]
[312987334,1706566253859,-844.75,0.00052054,31]
[312987335,1706566253868,-500.0,0.00052054,31]
[312987336,1706566253878,-1035.76041982,0.00052054,7]
[312987337,1706566253888,-500.0,0.00052054,31]
[312987338,1706566253898,-500.0,0.00052054,31]
[312987339,1706566253908,-500.0,0.00052054,31]
[312987340,1706566253918,-500.0,0.00052054,2]
[312987341,1706566253929,-619.48,0.00052054,31]
[312987342,1706566253939,-312.64424731,0.00052054,31]
[312987343,1706566253948,-500.0,0.00052054,31]
[312987344,1706566253957,-500.0,0.00052054,31]
[312987345,1706566253969,-521.19,0.00052054,2]
[312987346,1706566253978,-500.0,0.00052054,31]
[312987347,1706566253987,-212.5388454,0.00052054,31]
[312987348,1706566253996,-1000.0,0.00052055,120]
[312987349,1706566254006,-1000.0,0.00052055,120]
[312987350,1706566254015,-1000.0,0.00052055,120]
[312987351,1706566254025,-1000.0,0.00052055,120]
[312987352,1706566254034,-1000.0,0.00052055,120]
[312987353,1706566254044,-1000.0,0.00052055,120]
[312987354,1706566254054,-521.57598546,0.00052055,120]
[312987355,1706566254063,-500.0,0.00052055,30]
[312987356,1706566254072,-150.0,0.00052058,30]
[312987357,1706566254081,-1445.0,0.0005206,6]
[312987358,1706566254090,-195.96504941,0.0005211,120]
[312987359,1706566254099,-150.0,0.00052116,30]
[312987360,1706566254108,-500.0,0.00052117,30]
[312987361,1706566254118,-150.0,0.00052175,30]
[312987362,1706566254128,-150.0,0.00052183,30]
[312987363,1706566254138,-150.0,0.00052183,30]
[312987364,1706566254148,-150.0,0.00052183,30]
[312987365,1706566254157,-151.013,0.00052198,60]
[312987366,1706566254167,-150.0,0.00052234,30]
[312987367,1706566254176,-965.8172249,0.0005224,4]
[312987368,1706566254186,-150.0,0.00052248,30]
[312987369,1706566254195,-412.0,0.0005229,2]
[312987370,1706566254204,-470.0,0.0005229,2]
[312987371,1706566254214,-150.0,0.00052292,30]
[312987372,1706566254223,-200.0,0.00052328,31]
[312987373,1706566254233,-500.0,0.00052328,31]
[312987374,1706566254242,-500.0,0.00052328,31]
[312987375,1706566254251,-500.0,0.00052328,31]
[312987376,1706566254260,-500.0,0.00052328,31]
[312987377,1706566254270,-500.0,0.00052328,31]
[312987378,1706566254279,-512.20740692,0.00052328,31]
[312987379,1706566254289,-500.0,0.00052328,31]
[312987380,1706566254298,-1148.31,0.00052328,7]
[312987381,1706566254308,-500.0,0.00052328,31]
[312987382,1706566254317,-300.0,0.00052328,10]
[312987383,1706566254327,-500.0,0.00052328,31]
[312987384,1706566254337,-500.0,0.00052328,7]
[312987385,1706566254347,-500.0,0.00052328,7]
[312987386,1706566254357,-162.02135621,0.00052328,31]
[312987387,1706566254367,-500.0,0.00052328,31]
[312987388,1706566254376,-340.87863056,0.00052328,31]
[312987389,1706566254386,-648.70007375,0.00052328,31]
[312987390,1706566254396,-500.0,0.00052328,31]
[312987391,1706566254406,-500.0,0.00052328,31]
[312987392,1706566254416,-500.0,0.00052328,2]
[312987393,1706566254426,-500.0,0.00052328,7]
[312987394,1706566254436,-582.0324857,0.00052328,31]
[312987395,1706566254446,-522.84,0.00052328,31]
[312987396,1706566254457,-416.3410767,0.00052328,31]
[312987397,1706566254469,-500.0,0.00052328,31]
[312987398,1706566254478,-585.11,0.00052328,31]
[312987399,1706566254488,-500.0,0.00052328,31]
[312987400,1706566254498,-649.21,0.00052328,31]
[312987401,1706566254507,-500.0,0.00052328,31]
[312987402,1706566254517,-590.24454403,0.00052328,31]
[312987403,1706566254527,-500.0,0.00052328,31]
[312987404,1706566254537,-500.0,0.00052328,31]
[312987405,1706566254546,-500.0,0.00052328,31]
[312987406,1706566254556,-500.0,0.00052328,31]
[312987407,1706566254566,-500.0,0.00052328,31]
[312987408,1706566254576,-500.0,0.00052328,2]
[312987409,1706566254586,-616.21795322,0.00052328,120]
[312987410,1706566254596,-379.6380477,0.00052328,31]
[312987411,1706566254605,-1105.78,0.00052328,31]
[312987412,1706566254614,-500.0,0.00052328,31]
[312987413,1706566254626,-500.0,0.00052328,31]
[312987414,1706566254636,-500.0,0.00052328,31]
[312987415,1706566254645,-500.0,0.00052328,31]
[312987416,1706566254656,-452.52877319,0.00052328,15]
[312987417,1706566254670,-500.0,0.00052328,31]
[312987418,1706566254680,-639.34661927,0.00052328,31]
[312987419,1706566254690,-500.0,0.00052328,31]
[312987420,1706566254700,-500.0,0.00052328,31]
[312987421,1706566254711,-184.25,0.00052328,31]
[312987422,1706566254722,-480.54436123,0.00052328,31]
[312987423,1706566254731,-500.0,0.00052328,31]
[312987424,1706566254741,-500.0,0.00052328,31]
[312987425,1706566254751,-500.0,0.00052328,31]
[312987426,1706566254761,-500.0,0.00052328,31]
[312987427,1706566254771,-500.0,0.00052328,2]
[312987428,1706566254782,-500.0,0.00052328,31]
[312987429,1706566254792,-565.37066794,0.00052328,7]
[312987430,1706566254802,-500.0,0.00052328,31]
[312987431,1706566254814,-500.0,0.00052328,31]
[312987432,1706566254826,-500.0,0.00052328,31]
[312987433,1706566254838,-500.0,0.00052328,31]
[312987434,1706566254848,-500.0,0.00052328,31]
[312987435,1706566254858,-500.0,0.00052328,31]
[312987436,1706566254867,-500.0,0.00052328,31]
[312987437,1706566254877,-500.0,0.00052328,31]
[312987438,1706566254887,-500.0,0.00052328,31]
[312987439,1706566254897,-942.19,0.00052328,31]
[312987440,1706566254906,-500.0,0.00052328,31]
[312987441,1706566254916,-700.92,0.00052328,7]
[312987442,1706566254925,-500.0,0.00052328,31]
[312987443,1706566254934,-310.96874178,0.00052328,31]
[312987444,1706566254944,-517.7372827,0.00052328,31]
[312987445,1706566254953,-596.02944421,0.00052328,31]
[312987446,1706566254963,-500.0,0.00052328,31]
[312987447,1706566254973,-500.0,0.00052328,31]
[312987448,1706566254982,-525.71004361,0.00052328,31]
[312987449,1706566254992,-500.0,0.00052328,31]
[312987450,1706566255001,-500.0,0.00052328,31]
[312987451,1706566255010,-500.0,0.00052328,31]
[312987452,1706566255020,-500.0,0.00052328,31]
[312987453,1706566255030,-500.0,0.00052328,31]
[312987454,1706566255039,-523.57,0.00052328,2]
[312987455,1706566255048,-500.0,0.00052328,31]
[312987456,1706566255058,-500.0,0.00052328,31]
[312987457,1706566255067,-500.0,0.00052328,31]
[312987458,1706566255077,-500.0,0.00052328,31]
[312987459,1706566255086,-500.0,0.00052328,31]
[312987460,1706566255096,-591.27519891,0.00052328,31]
[312987461,1706566255106,-500.0,0.00052328,31]
[312987462,1706566255116,-500.0,0.00052328,2]
[312987463,1706566255126,-1303.89,0.00052328,2]
[312987464,1706566255136,-500.0,0.00052328,31]
[312987465,1706566255145,-500.0,0.00052328,31]
[312987466,1706566255155,-500.0,0.00052328,31]
[312987467,1706566255164,-500.0,0.00052328,2]
[312987468,1706566255174,-679.25,0.00052328,31]
[312987469,1706566255183,-519.11238655,0.00052328,31]
[312987470,1706566255193,-500.0,0.00052328,31]
[312987471,1706566255203,-500.0,0.00052328,31]
[312987472,1706566255212,-500.0,0.00052328,31]
[312987473,1706566255222,-500.0,0.00052328,31]
[312987474,1706566255232,-500.0,0.00052328,31]
[312987475,1706566255241,-500.0,0.00052328,31]
[312987476,1706566255250,-270.10599609,0.00052328,31]
[312987477,1706566255260,-612.09,0.00052328,31]
[312987478,1706566255270,-500.0,0.00052328,31]
[312987479,1706566255279,-500.0,0.00052328,31]
[312987480,1706566255288,-500.0,0.00052328,31]
[312987481,1706566255298,-500.0,0.00052328,31]
[312987482,1706566255308,-500.0,0.00052328,31]
[312987483,1706566255317,-500.0,0.00052328,31]
[312987484,1706566255327,-500.0,0.00052328,31]
[312987485,1706566255336,-1000.0,0.00052328,31]
[312987486,1706566255346,-500.0,0.00052328,31]
[312987487,1706566255355,-153.78267435,0.00052328,31]
[312987488,1706566255366,-500.0,0.00052328,31]
[312987489,1706566255376,-500.0,0.00052328,31]
[312987490,1706566255385,-348.02291417,0.00052328,31]
[312987491,1706566255395,-392.25219494,0.00052328,31]
[312987492,1706566255404,-500.0,0.00052328,31]
[312987493,1706566255414,-355.56915166,0.00052328,31]
[312987494,1706566255424,-500.0,0.00052328,31]
[312987495,1706566255435,-500.0,0.00052328,31]
[312987496,1706566255444,-500.0,0.00052328,31]
[312987497,1706566255454,-500.0,0.00052328,15]
[312987498,1706566255463,-500.0,0.00052328,31]
[312987499,1706566255473,-500.0,0.00052328,31]
[312987500,1706566255482,-500.0,0.00052328,31]
[312987501,1706566255491,-576.61631571,0.00052328,31]
[312987502,1706566255501,-500.0,0.00052328,31]
[312987503,1706566255510,-500.0,0.00052328,31]
[312987504,1706566255520,-542.98,0.00052328,2]
[312987505,1706566255529,-754.45,0.00052328,31]
[312987506,1706566255539,-3561.71,0.00052328,31]
[312987507,1706566255548,-227.18926692,0.00052328,31]
[312987508,1706566255558,-500.0,0.00052328,31]
[312987509,1706566255567,-500.0,0.00052328,31]
[312987510,1706566255577,-500.0,0.00052328,31]
[312987511,1706566255586,-500.0,0.00052328,31]
[312987512,1706566255597,-500.0,0.00052328,2]
[312987513,1706566255607,-1229.1,0.00052328,31]
[312987514,1706566255617,-633.98,0.00052328,31]
[312987515,1706566255627,-500.0,0.00052328,31]
[312987516,1706566255638,-500.0,0.00052328,31]
[312987517,1706566255648,-500.0,0.00052328,31]
[312987518,1706566255658,-500.0,0.00052328,31]
[312987519,1706566255673,-500.0,0.00052328,31]
[312987520,1706566255683,-500.0,0.00052328,31]
[312987521,1706566255693,-500.0,0.00052328,31]
[312987522,1706566255704,-500.0,0.00052328,31]
[312987523,1706566255713,-500.0,0.00052328,31]
[312987524,1706566255723,-1000.0,0.00052328,2]
[312987525,1706566255733,-457.18484093,0.00052328,31]
[312987526,1706566255743,-500.0,0.00052328,31]
[312987527,1706566255753,-500.0,0.00052328,31]
[312987528,1706566255762,-500.0,0.00052328,31]
[312987529,1706566255772,-272.52,0.00052328,31]
[312987530,1706566255782,-500.0,0.00052328,31]
[312987531,1706566255792,-500.0,0.00052328,31]
[312987532,1706566255802,-185.85383834,0.00052328,31]
[312987533,1706566255811,-500.0,0.00052328,120]
[312987534,1706566255821,-500.0,0.00052328,31]
[312987535,1706566255830,-500.0,0.00052328,31]
[312987536,1706566255840,-3095.55,0.00052328,31]
[312987537,1706566255849,-1484.56,0.00052328,31]
[312987538,1706566255859,-615.33778361,0.00052328,14]
[312987539,1706566255869,-1307.02,0.00052328,31]
[312987540,1706566255880,-500.0,0.00052328,31]
[312987541,1706566255890,-595.51,0.00052328,31]
[312987542,1706566255899,-540.3318387,0.00052328,31]
[312987543,1706566255909,-500.0,0.00052328,31]
[312987544,1706566255919,-2070.88,0.00052328,31]
[312987545,1706566255929,-500.0,0.00052328,31]
[312987546,1706566255939,-500.0,0.00052328,31]
[312987547,1706566255949,-500.0,0.00052328,31]
[312987548,1706566255959,-500.0,0.00052328,31]
[312987549,1706566256114,-3836.72,0.00052328,31]
[312987550,1706566256125,-814.87,0.00052328,31]
[312987551,1706566256134,-500.0,0.00052328,31]
[312987552,1706566256143,-649.37813496,0.00052328,31]
[312987553,1706566256153,-500.0,0.00052328,31]
[312987554,1706566256162,-500.0,0.00052328,31]
[312987555,1706566256172,-500.0,0.00052328,31]
[312987556,1706566256182,-500.0,0.00052328,31]
[312987557,1706566256191,-500.0,0.00052328,31]
[312987558,1706566256201,-1147.31,0.00052328,31]
[312987559,1706566256210,-755.21,0.00052328,31]
[312987560,1706566256220,-500.0,0.00052328,31]
[312987561,1706566256230,-500.0,0.00052328,31]
[312987562,1706566256240,-500.0,0.00052328,31]
[312987563,1706566256249,-5474.33,0.00052328,31]
[312987564,1706566256258,-500.0,0.00052328,31]
[312987565,1706566256267,-1002.0,0.00052328,31]
[312987566,1706566256276,-792.91,0.00052328,31]
[312987567,1706566256286,-779.61,0.00052328,31]
[312987568,1706566256296,-500.0,0.00052328,31]
[312987569,1706566256305,-987.88,0.00052328,31]
[312987570,1706566256314,-500.0,0.00052328,31]
[312987571,1706566256324,-1538.29,0.00052328,31]
[312987572,1706566256333,-500.0,0.00052328,31]
[312987573,1706566256343,-2197.03,0.00052328,5]
[312987574,1706566256353,-500.0,0.00052328,31]
[312987575,1706566256362,-500.0,0.00052328,31]
[312987576,1706566256372,-622.48,0.00052328,31]
[312987577,1706566256381,-1571.68,0.00052328,7]
[312987578,1706566256391,-500.0,0.00052328,31]
[312987579,1706566256401,-396.26922871,0.00052328,31]
[312987580,1706566256411,-500.0,0.00052328,31]
[312987581,1706566256420,-647.22679554,0.00052328,31]
[312987582,1706566256429,-717.47,0.00052328,31]
[312987583,1706566256439,-948.48,0.00052328,31]
[312987584,1706566256449,-500.0,0.00052328,31]
[312987585,1706566256458,-711.62,0.00052328,31]
[312987586,1706566256468,-1276.53,0.00052328,31]
[312987587,1706566256477,-994.95,0.00052328,31]
[312987588,1706566256486,-500.0,0.00052328,31]
[312987589,1706566256496,-840.96,0.00052328,31]
[312987590,1706566256505,-1923.69,0.00052328,31]
[312987591,1706566256515,-500.0,0.00052328,31]
[312987592,1706566256524,-725.91,0.00052328,31]
[312987593,1706566256534,-500.0,0.00052328,31]
[312987594,1706566256544,-500.0,0.00052328,31]
[312987595,1706566256553,-500.0,0.00052328,31]
[312987596,1706566256563,-500.0,0.00052328,31]
[312987597,1706566256572,-500.0,0.00052328,31]
[312987598,1706566256582,-500.0,0.00052328,31]
[312987599,1706566256591,-500.0,0.00052328,31]
[312987600,1706566256600,-500.0,0.00052328,31]
[312987601,1706566256610,-500.0,0.00052328,31]
[312987602,1706566256619,-934.51,0.00052328,31]
[312987603,1706566256628,-500.0,0.00052328,31]
[312987604,1706566256637,-500.0,0.00052328,31]
[312987605,1706566256647,-500.0,0.00052328,31]
[312987606,1706566256656,-2924.81,0.00052328,31]
[312987607,1706566256669,-1427.03,0.00052328,31]
[312987608,1706566256679,-506.82,0.00052328,31]
[312987609,1706566256688,-500.0,0.00052328,31]
[312987610,1706566256697,-500.0,0.00052328,31]
[312987611,1706566256707,-1665.12,0.00052328,31]
[312987612,1706566256716,-781.84,0.00052328,31]
[312987613,1706566256725,-500.0,0.00052328,31]
[312987614,1706566256734,-500.0,0.00052328,31]
[312987615,1706566256744,-500.0,0.00052328,31]
[312987616,1706566256754,-500.0,0.00052328,31]
[312987617,1706566256763,-500.0,0.00052328,31]
[312987618,1706566256772,-1231.49,0.00052328,31]
[312987619,1706566256781,-500.0,0.00052328,31]
[312987620,1706566256790,-752.99,0.00052328,31]
[312987621,1706566256801,-500.0,0.00052328,31]
[312987622,1706566256810,-3074.81,0.00052328,31]
[312987623,1706566256820,-319.79415568,0.00052328,31]
[312987624,1706566256829,-800.03,0.00052328,31]
[312987625,1706566256839,-500.0,0.00052328,31]
[312987626,1706566256848,-500.0,0.00052328,31]
[312987627,1706566256857,-500.0,0.00052328,31]
[312987628,1706566256866,-1773.63,0.00052328,31]
[312987629,1706566256875,-500.0,0.00052328,31]
[312987630,1706566256885,-500.0,0.00052328,31]
[312987631,1706566256894,-500.0,0.00052328,31]
[312987632,1706566256903,-738.27,0.00052328,31]
[312987633,1706566256912,-961.37,0.00052328,31]
[312987634,1706566256921,-500.0,0.00052328,31]
[312987635,1706566256931,-500.0,0.00052328,31]
[312987636,1706566256940,-500.0,0.00052328,31]
[312987637,1706566256950,-500.0,0.00052328,31]
[312987638,1706566256959,-1355.14,0.00052328,31]
[312987639,1706566256968,-1812.5,0.00052328,31]
[312987640,1706566256977,-707.97,0.00052328,31]
[312987641,1706566256986,-549.58,0.00052328,31]
[312987642,1706566256996,-801.96,0.00052328,31]
[312987643,1706566257005,-837.8,0.00052328,31]
[312987644,1706566257015,-500.0,0.00052328,31]
[312987645,1706566257026,-500.0,0.00052328,31]
[312987646,1706566257036,-500.0,0.00052328,31]
[312987647,1706566257045,-500.0,0.00052328,31]
[312987648,1706566257056,-500.0,0.00052328,31]
[312987649,1706566257067,-500.0,0.00052328,14]